[Event "December 5 Late 2023"]
[Site "https://www.chess.com"]
[Date "2023.12.05"]
[Round "3"]
[White "Martinez Alcantara, Jose Eduardo"]
[Black "Koc, Przemyslaw"]
[Result "1-0"]
[Board "56"]
[TimeControl "180+1"]
[WhiteFideId "3805662"]
[BlackFideId "1109081"]
[WhiteElo "2967"]
[BlackElo "2517"]
[WhiteTeam "PER"]
[BlackTeam "POL"]
[WhiteClock "0:00:10"]
[BlackClock "0:00:36"]

1. e4 {[%clk 0:03:00]}  e5 {[%clk 0:02:58]} 2. Nf3 {[%clk 0:02:49]}  Nf6 {[%clk 0:02:58]} 3. Nc3 {[%clk 0:02:49]}  Nc6 {[%clk 0:02:56]} 4. h3 {[%clk 0:02:50]}  d5 {[%clk 0:02:55]} 5. exd5 {[%clk 0:02:51]}  Nxd5 {[%clk 0:02:55]} 6. Bb5 {[%clk 0:02:51]}  Nxc3 {[%clk 0:02:54]} 7. bxc3 {[%clk 0:02:52]}  Bd6 {[%clk 0:02:55]} 8. O-O {[%clk 0:02:53]}  O-O {[%clk 0:02:54]} 9. d4 {[%clk 0:02:53]}  exd4 {[%clk 0:02:54]} 10. cxd4 {[%clk 0:02:54]}  a6 {[%clk 0:02:45]} 11. Bd3 {[%clk 0:02:51]}  h6 {[%clk 0:02:36]} 12. c3 {[%clk 0:02:50]}  Qf6 {[%clk 0:02:33]} 13. Rb1 {[%clk 0:02:46]}  b5 {[%clk 0:02:32]} 14. a4 {[%clk 0:02:30]}  bxa4 {[%clk 0:02:31]} 15. Ra1 {[%clk 0:02:30]}  Bd7 {[%clk 0:02:30]} 16. Rxa4 {[%clk 0:02:27]}  a5 {[%clk 0:02:30]} 17. Ra1 {[%clk 0:02:27]}  a4 {[%clk 0:02:27]} 18. Nd2 {[%clk 0:02:20]}  Bxh3 {[%clk 0:02:15]} 19. gxh3 {[%clk 0:02:05]}  Nxd4 {[%clk 0:01:07]} 20. Qg4 {[%clk 0:00:54]}  Nb3 {[%clk 0:00:58]} 21. Nxb3 {[%clk 0:00:43]}  axb3 {[%clk 0:00:59]} 22. Rxa8 {[%clk 0:00:39]}  Rxa8 {[%clk 0:01:00]} 23. Qe4 {[%clk 0:00:36]}  Ra1 {[%clk 0:00:54]} 24. Qh7+ {[%clk 0:00:23]}  Kf8 {[%clk 0:00:54]} 25. Qh8+ {[%clk 0:00:24]}  Ke7 {[%clk 0:00:55]} 26. Re1+ {[%clk 0:00:25]}  Be5 {[%clk 0:00:53]} 27. Kf1 {[%clk 0:00:16]}  Qf3 {[%clk 0:00:37]} 28. Rxe5+ {[%clk 0:00:15]}  Kd6 {[%clk 0:00:38]} 29. Qd8+ {[%clk 0:00:10]}  Kxe5 {[%clk 0:00:38]} 30. Qxc7+ {[%clk 0:00:10]}  Kf6 {[%clk 0:00:36]} 31. Qd6# {[%clk 0:00:10]} 1-0

[Event "December 5 Late 2023"]
[Site "https://www.chess.com"]
[Date "2023.12.05"]
[Round "3"]
[White "Khismatullin, Denis"]
[Black "Hadzovic, Amir"]
[Result "1-0"]
[Board "57"]
[TimeControl "180+1"]
[WhiteFideId "4142578"]
[BlackFideId "14402300"]
[WhiteElo "2929"]
[BlackElo "2517"]
[WhiteTeam "RUS"]
[BlackTeam "BIH"]
[WhiteClock "0:01:30"]
[BlackClock "0:00:18"]

1. e4 {[%clk 0:03:00]}  e5 {[%clk 0:02:59]} 2. Nf3 {[%clk 0:03:00]}  Nc6 {[%clk 0:02:59]} 3. g3 {[%clk 0:03:00]}  Bc5 {[%clk 0:02:58]} 4. Bg2 {[%clk 0:02:59]}  d6 {[%clk 0:02:59]} 5. c3 {[%clk 0:02:58]}  Bb6 {[%clk 0:02:59]} 6. a4 {[%clk 0:02:54]}  a6 {[%clk 0:02:57]} 7. O-O {[%clk 0:02:52]}  f5 {[%clk 0:02:54]} 8. exf5 {[%clk 0:02:50]}  Bxf5 {[%clk 0:02:55]} 9. d4 {[%clk 0:02:49]}  Nf6 {[%clk 0:02:54]} 10. a5 {[%clk 0:02:44]}  Ba7 {[%clk 0:02:54]} 11. dxe5 {[%clk 0:02:36]}  dxe5 {[%clk 0:02:54]} 12. Qb3 {[%clk 0:02:35]}  Qd5 {[%clk 0:02:26]} 13. Qxb7 {[%clk 0:02:05]}  Be4 {[%clk 0:01:50]} 14. Qxa8+ {[%clk 0:02:00]}  Kf7 {[%clk 0:01:49]} 15. Ng5+ {[%clk 0:01:56]}  Ke7 {[%clk 0:01:47]} 16. Bxe4 {[%clk 0:01:50]}  Nxe4 {[%clk 0:01:41]} 17. Qxh8 {[%clk 0:01:43]}  Nxf2 {[%clk 0:00:37]} 18. Qxg7+ {[%clk 0:01:41]}  Kd8 {[%clk 0:00:38]} 19. Qf8+ {[%clk 0:01:39]}  Kd7 {[%clk 0:00:37]} 20. Qf7+ {[%clk 0:01:34]}  Qxf7 {[%clk 0:00:37]} 21. Nxf7 {[%clk 0:01:34]}  Ng4+ {[%clk 0:00:21]} 22. Kg2 {[%clk 0:01:34]}  e4 {[%clk 0:00:22]} 23. h3 {[%clk 0:01:32]}  Nh6 {[%clk 0:00:18]} 24. Nxh6 {[%clk 0:01:30]} 1-0

[Event "December 5 Late 2023"]
[Site "https://www.chess.com"]
[Date "2023.12.05"]
[Round "3"]
[White "Shapiro, Viktor"]
[Black "Grigoriants, Sergey"]
[Result "0-1"]
[Board "58"]
[TimeControl "180+1"]
[WhiteFideId "4175700"]
[BlackFideId "4130804"]
[WhiteElo "2515"]
[BlackElo "2926"]
[WhiteTeam "RUS"]
[BlackTeam "HUN"]
[WhiteClock "0:00:06"]
[BlackClock "0:00:09"]

1. Nf3 {[%clk 0:03:00]}  d5 {[%clk 0:02:55]} 2. g3 {[%clk 0:03:01]}  c5 {[%clk 0:02:53]} 3. Bg2 {[%clk 0:03:01]}  f6 {[%clk 0:02:53]} 4. d3 {[%clk 0:03:02]}  e5 {[%clk 0:02:52]} 5. O-O {[%clk 0:03:01]}  Nc6 {[%clk 0:02:53]} 6. c4 {[%clk 0:03:00]}  Nge7 {[%clk 0:02:49]} 7. Nc3 {[%clk 0:02:59]}  d4 {[%clk 0:02:48]} 8. Ne4 {[%clk 0:02:59]}  Ng6 {[%clk 0:02:48]} 9. h4 {[%clk 0:02:57]}  Be7 {[%clk 0:02:47]} 10. h5 {[%clk 0:02:56]}  Nf8 {[%clk 0:02:47]} 11. h6 {[%clk 0:02:55]}  g5 {[%clk 0:02:40]} 12. e3 {[%clk 0:02:49]}  Ng6 {[%clk 0:02:35]} 13. exd4 {[%clk 0:02:48]}  cxd4 {[%clk 0:02:34]} 14. a3 {[%clk 0:02:43]}  a5 {[%clk 0:02:34]} 15. Rb1 {[%clk 0:02:33]}  O-O {[%clk 0:02:30]} 16. b4 {[%clk 0:02:29]}  axb4 {[%clk 0:02:28]} 17. axb4 {[%clk 0:02:28]}  g4 {[%clk 0:02:18]} 18. Nh2 {[%clk 0:02:26]}  f5 {[%clk 0:02:18]} 19. b5 {[%clk 0:02:23]}  Nb4 {[%clk 0:02:05]} 20. Ng5 {[%clk 0:02:17]}  Nxd3 {[%clk 0:01:58]} 21. Nxh7 {[%clk 0:02:04]}  Kxh7 {[%clk 0:01:58]} 22. Qxd3 {[%clk 0:02:03]}  e4 {[%clk 0:01:59]} 23. Qd1 {[%clk 0:01:55]}  Be6 {[%clk 0:01:54]} 24. Nxg4 {[%clk 0:01:47]}  fxg4 {[%clk 0:01:45]} 25. Bxe4 {[%clk 0:01:47]}  Qd7 {[%clk 0:01:45]} 26. Qd3 {[%clk 0:01:38]}  Bf5 {[%clk 0:01:45]} 27. b6 {[%clk 0:01:19]}  Ne5 {[%clk 0:01:40]} 28. Qe2 {[%clk 0:00:59]}  Bxe4 {[%clk 0:01:34]} 29. Qxe4+ {[%clk 0:00:59]}  Qf5 {[%clk 0:01:35]} 30. Qxb7 {[%clk 0:00:51]}  Rae8 {[%clk 0:01:22]} 31. Rb5 {[%clk 0:00:50]}  Nf3+ {[%clk 0:00:55]} 32. Kg2 {[%clk 0:00:49]}  Qe6 {[%clk 0:00:51]} 33. Qd5 {[%clk 0:00:44]}  Qxd5 {[%clk 0:00:17]} 34. Rxd5 {[%clk 0:00:43]}  Rd8 {[%clk 0:00:16]} 35. Rxd8 {[%clk 0:00:38]}  Rxd8 {[%clk 0:00:15]} 36. Bf4 {[%clk 0:00:39]}  Rd7 {[%clk 0:00:12]} 37. Rb1 {[%clk 0:00:35]}  Rb7 {[%clk 0:00:12]} 38. Bc7 {[%clk 0:00:33]}  d3 {[%clk 0:00:11]} 39. Rd1 {[%clk 0:00:33]}  d2 {[%clk 0:00:09]} 40. Kf1 {[%clk 0:00:31]}  Bc5 {[%clk 0:00:10]} 41. Bf4 {[%clk 0:00:28]}  Rxb6 {[%clk 0:00:09]} 42. Bxd2 {[%clk 0:00:27]}  Rb2 {[%clk 0:00:05]} 43. Be3 {[%clk 0:00:25]}  Bxe3 {[%clk 0:00:05]} 44. fxe3 {[%clk 0:00:25]}  Kxh6 {[%clk 0:00:06]} 45. Rd5 {[%clk 0:00:24]}  Rc2 {[%clk 0:00:06]} 46. c5 {[%clk 0:00:24]}  Kg6 {[%clk 0:00:06]} 47. e4 {[%clk 0:00:23]}  Kf6 {[%clk 0:00:05]} 48. Rf5+ {[%clk 0:00:21]}  Ke6 {[%clk 0:00:06]} 49. Rh5 {[%clk 0:00:18]}  Ne5 {[%clk 0:00:06]} 50. Rh6+ {[%clk 0:00:17]}  Kf7 {[%clk 0:00:06]} 51. Rh5 {[%clk 0:00:17]}  Rxc5 {[%clk 0:00:06]} 52. Ke2 {[%clk 0:00:17]}  Kf6 {[%clk 0:00:05]} 53. Rf5+ {[%clk 0:00:17]}  Ke6 {[%clk 0:00:05]} 54. Rh5 {[%clk 0:00:18]}  Rc2+ {[%clk 0:00:05]} 55. Ke3 {[%clk 0:00:18]}  Rc3+ {[%clk 0:00:06]} 56. Kd4 {[%clk 0:00:15]}  Rd3+ {[%clk 0:00:06]} 57. Kc5 {[%clk 0:00:15]}  Rd1 {[%clk 0:00:05]} 58. Rh6+ {[%clk 0:00:15]}  Kf7 {[%clk 0:00:06]} 59. Rh5 {[%clk 0:00:14]}  Kf6 {[%clk 0:00:06]} 60. Rh6+ {[%clk 0:00:14]}  Kg5 {[%clk 0:00:06]} 61. Re6 {[%clk 0:00:14]}  Nd7+ {[%clk 0:00:06]} 62. Kc6 {[%clk 0:00:14]}  Nf6 {[%clk 0:00:06]} 63. e5 {[%clk 0:00:14]}  Ne4 {[%clk 0:00:07]} 64. Re8 {[%clk 0:00:14]}  Kf5 {[%clk 0:00:07]} 65. e6 {[%clk 0:00:14]}  Rd6+ {[%clk 0:00:07]} 66. Kc7 {[%clk 0:00:14]}  Rxe6 {[%clk 0:00:08]} 67. Rf8+ {[%clk 0:00:14]}  Rf6 {[%clk 0:00:08]} 68. Rg8 {[%clk 0:00:13]}  Nxg3 {[%clk 0:00:08]} 69. Kd7 {[%clk 0:00:14]}  Ne4 {[%clk 0:00:08]} 70. Ke7 {[%clk 0:00:14]}  g3 {[%clk 0:00:09]} 71. Rg7 {[%clk 0:00:11]}  Re6+ {[%clk 0:00:09]} 72. Kd7 {[%clk 0:00:10]}  Rg6 {[%clk 0:00:08]} 73. Rf7+ {[%clk 0:00:10]}  Kg4 {[%clk 0:00:08]} 74. Rf1 {[%clk 0:00:08]}  g2 {[%clk 0:00:08]} 75. Rg1 {[%clk 0:00:06]}  Kf3 {[%clk 0:00:09]} 0-1

[Event "December 5 Late 2023"]
[Site "https://www.chess.com"]
[Date "2023.12.05"]
[Round "3"]
[White "Galaktionov, Artem"]
[Black "Chylewski, Patryk"]
[Result "1/2-1/2"]
[Board "60"]
[TimeControl "180+1"]
[WhiteFideId "24175471"]
[BlackFideId "1186191"]
[WhiteElo "2844"]
[BlackElo "2511"]
[WhiteTeam "RUS"]
[BlackTeam "POL"]
[WhiteClock "0:00:09"]
[BlackClock "0:00:05"]

1. d4 {[%clk 0:02:59]}  d5 {[%clk 0:02:50]} 2. c4 {[%clk 0:02:58]}  e6 {[%clk 0:02:42]} 3. Nf3 {[%clk 0:02:58]}  a6 {[%clk 0:02:38]} 4. cxd5 {[%clk 0:02:57]}  exd5 {[%clk 0:02:39]} 5. Nc3 {[%clk 0:02:58]}  Nf6 {[%clk 0:02:38]} 6. Bg5 {[%clk 0:02:58]}  Be6 {[%clk 0:02:38]} 7. e3 {[%clk 0:02:54]}  Nbd7 {[%clk 0:02:38]} 8. Bd3 {[%clk 0:02:54]}  Bd6 {[%clk 0:02:39]} 9. h3 {[%clk 0:02:54]}  c6 {[%clk 0:02:37]} 10. O-O {[%clk 0:02:54]}  Qc7 {[%clk 0:02:37]} 11. Qd2 {[%clk 0:02:55]}  O-O {[%clk 0:02:36]} 12. Rfc1 {[%clk 0:02:51]}  Nh5 {[%clk 0:02:22]} 13. g4 {[%clk 0:02:46]}  Nhf6 {[%clk 0:02:20]} 14. Bf4 {[%clk 0:02:41]}  Rfe8 {[%clk 0:02:18]} 15. Kg2 {[%clk 0:02:38]}  Nf8 {[%clk 0:02:13]} 16. Bxd6 {[%clk 0:02:32]}  Qxd6 {[%clk 0:02:14]} 17. Ne5 {[%clk 0:02:32]}  N6d7 {[%clk 0:02:08]} 18. f4 {[%clk 0:02:31]}  f6 {[%clk 0:02:08]} 19. Nf3 {[%clk 0:02:28]}  Bf7 {[%clk 0:02:06]} 20. Re1 {[%clk 0:02:18]}  Rad8 {[%clk 0:02:02]} 21. f5 {[%clk 0:02:11]}  c5 {[%clk 0:01:54]} 22. dxc5 {[%clk 0:02:04]}  Nxc5 {[%clk 0:01:54]} 23. Rad1 {[%clk 0:02:04]}  Nfd7 {[%clk 0:01:48]} 24. Bf1 {[%clk 0:01:56]}  Ne5 {[%clk 0:01:46]} 25. Qf2 {[%clk 0:01:46]}  Qb6 {[%clk 0:01:41]} 26. Nd4 {[%clk 0:01:41]}  Ne4 {[%clk 0:01:13]} 27. Nxe4 {[%clk 0:01:31]}  dxe4 {[%clk 0:01:14]} 28. b3 {[%clk 0:01:30]}  Bd5 {[%clk 0:01:12]} 29. Kg1 {[%clk 0:01:26]}  Bf7 {[%clk 0:00:48]} 30. Be2 {[%clk 0:01:22]}  Qa5 {[%clk 0:00:43]} 31. Bf1 {[%clk 0:01:18]}  Bd5 {[%clk 0:00:42]} 32. Qd2 {[%clk 0:01:17]}  Qa3 {[%clk 0:00:31]} 33. Rc1 {[%clk 0:00:57]}  Bc6 {[%clk 0:00:26]} 34. Be2 {[%clk 0:00:52]}  h6 {[%clk 0:00:24]} 35. Qc3 {[%clk 0:00:47]}  Kh8 {[%clk 0:00:21]} 36. Nc2 {[%clk 0:00:46]}  Qe7 {[%clk 0:00:18]} 37. Red1 {[%clk 0:00:45]}  Nd3 {[%clk 0:00:13]} 38. Rb1 {[%clk 0:00:31]}  Qd6 {[%clk 0:00:13]} 39. Kg2 {[%clk 0:00:30]}  Bd5 {[%clk 0:00:10]} 40. Nd4 {[%clk 0:00:25]}  Rc8 {[%clk 0:00:09]} 41. Qd2 {[%clk 0:00:25]}  Qe5 {[%clk 0:00:09]} 42. a4 {[%clk 0:00:21]}  Red8 {[%clk 0:00:09]} 43. b4 {[%clk 0:00:19]}  Bf7 {[%clk 0:00:09]} 44. b5 {[%clk 0:00:20]}  Bc4 {[%clk 0:00:04]} 45. bxa6 {[%clk 0:00:19]}  bxa6 {[%clk 0:00:05]} 46. Rb7 {[%clk 0:00:19]}  Rxd4 {[%clk 0:00:04]} 47. exd4 {[%clk 0:00:19]}  Qxd4 {[%clk 0:00:05]} 48. Bxd3 {[%clk 0:00:15]}  exd3 {[%clk 0:00:05]} 49. Re7 {[%clk 0:00:16]}  Bd5+ {[%clk 0:00:05]} 50. Kg3 {[%clk 0:00:16]}  Rc2 {[%clk 0:00:05]} 51. Qe3 {[%clk 0:00:15]}  Qxe3+ {[%clk 0:00:02]} 52. Rxe3 {[%clk 0:00:16]}  Bc4 {[%clk 0:00:03]} 53. h4 {[%clk 0:00:15]}  Ra2 {[%clk 0:00:03]} 54. Rh1 {[%clk 0:00:15]}  Kg8 {[%clk 0:00:03]} 55. Re7 {[%clk 0:00:15]}  Kf8 {[%clk 0:00:02]} 56. Rc7 {[%clk 0:00:15]}  Bb3 {[%clk 0:00:02]} 57. Rc3 {[%clk 0:00:15]}  Bc2 {[%clk 0:00:02]} 58. Rh2 {[%clk 0:00:15]}  Rxa4 {[%clk 0:00:02]} 59. Rd2 {[%clk 0:00:15]}  Rb4 {[%clk 0:00:01]} 60. Rc8+ {[%clk 0:00:15]}  Kf7 {[%clk 0:00:01]} 61. Rc7+ {[%clk 0:00:16]}  Kg8 {[%clk 0:00:02]} 62. Ra7 {[%clk 0:00:16]}  Rb6 {[%clk 0:00:01]} 63. Kf4 {[%clk 0:00:16]}  Rc6 {[%clk 0:00:02]} 64. g5 {[%clk 0:00:17]}  hxg5+ {[%clk 0:00:02]} 65. hxg5 {[%clk 0:00:18]}  fxg5+ {[%clk 0:00:03]} 66. Kxg5 {[%clk 0:00:18]}  Rb6 {[%clk 0:00:03]} 67. Rg2 {[%clk 0:00:18]}  Kf8 {[%clk 0:00:03]} 68. Kf4 {[%clk 0:00:18]}  Rd6 {[%clk 0:00:04]} 69. Rgxg7 {[%clk 0:00:18]}  d2 {[%clk 0:00:03]} 70. Rh7 {[%clk 0:00:18]}  Kg8 {[%clk 0:00:03]} 71. Rag7+ {[%clk 0:00:19]}  Kf8 {[%clk 0:00:04]} 72. Ra7 {[%clk 0:00:19]}  Kg8 {[%clk 0:00:04]} 73. Rag7+ {[%clk 0:00:19]}  Kf8 {[%clk 0:00:04]} 74. Rc7 {[%clk 0:00:18]}  Kg8 {[%clk 0:00:04]} 75. Rhg7+ {[%clk 0:00:18]}  Kf8 {[%clk 0:00:05]} 76. Rh7 {[%clk 0:00:14]}  Kg8 {[%clk 0:00:05]} 77. Rhg7+ {[%clk 0:00:12]}  Kf8 {[%clk 0:00:05]} 78. Rh7 {[%clk 0:00:09]} 1/2-1/2

[Event "December 5 Late 2023"]
[Site "https://www.chess.com"]
[Date "2023.12.05"]
[Round "3"]
[White "Hamidi, Amir Mohammad"]
[Black "Baches Garcia, Guillermo"]
[Result "1-0"]
[Board "64"]
[TimeControl "180+1"]
[WhiteFideId "12563285"]
[BlackFideId "2209764"]
[WhiteElo "2791"]
[BlackElo "2505"]
[WhiteTeam "IRI"]
[BlackTeam "ESP"]
[WhiteClock "0:00:35"]
[BlackClock "0:00:02"]

1. d4 {[%clk 0:03:00]}  d5 {[%clk 0:02:59]} 2. c4 {[%clk 0:03:00]}  e6 {[%clk 0:03:00]} 3. Nf3 {[%clk 0:03:00]}  a6 {[%clk 0:03:00]} 4. e3 {[%clk 0:02:53]}  Nf6 {[%clk 0:02:59]} 5. Nbd2 {[%clk 0:02:52]}  b6 {[%clk 0:02:56]} 6. Bd3 {[%clk 0:02:51]}  Bb7 {[%clk 0:02:54]} 7. O-O {[%clk 0:02:51]}  Nbd7 {[%clk 0:02:52]} 8. b3 {[%clk 0:02:50]}  Bd6 {[%clk 0:02:51]} 9. Bb2 {[%clk 0:02:49]}  O-O {[%clk 0:02:48]} 10. Qe2 {[%clk 0:02:47]}  c5 {[%clk 0:02:44]} 11. cxd5 {[%clk 0:02:45]}  exd5 {[%clk 0:02:44]} 12. Rac1 {[%clk 0:02:43]}  Re8 {[%clk 0:02:43]} 13. Rfd1 {[%clk 0:02:42]}  Qe7 {[%clk 0:02:39]} 14. h3 {[%clk 0:02:28]}  g6 {[%clk 0:02:36]} 15. Qf1 {[%clk 0:02:26]}  h5 {[%clk 0:02:33]} 16. Qe2 {[%clk 0:02:23]}  Ne4 {[%clk 0:02:25]} 17. Nb1 {[%clk 0:02:11]}  Ndf6 {[%clk 0:02:20]} 18. Nc3 {[%clk 0:02:10]}  b5 {[%clk 0:02:11]} 19. dxc5 {[%clk 0:02:09]}  Bxc5 {[%clk 0:02:10]} 20. Nb1 {[%clk 0:02:04]}  Rac8 {[%clk 0:02:00]} 21. Bd4 {[%clk 0:02:03]}  Bd6 {[%clk 0:01:54]} 22. Nbd2 {[%clk 0:02:02]}  Rxc1 {[%clk 0:01:51]} 23. Rxc1 {[%clk 0:02:01]}  Bb8 {[%clk 0:01:48]} 24. Nf1 {[%clk 0:01:52]}  Rc8 {[%clk 0:01:42]} 25. Rxc8+ {[%clk 0:01:51]}  Bxc8 {[%clk 0:01:43]} 26. Qc2 {[%clk 0:01:51]}  Qc7 {[%clk 0:01:40]} 27. Qb2 {[%clk 0:01:51]}  Qe7 {[%clk 0:01:31]} 28. N3d2 {[%clk 0:01:47]}  Nd7 {[%clk 0:01:18]} 29. Qc2 {[%clk 0:01:40]}  Bb7 {[%clk 0:01:17]} 30. Nf3 {[%clk 0:01:39]}  Qd6 {[%clk 0:01:11]} 31. a4 {[%clk 0:01:37]}  b4 {[%clk 0:01:08]} 32. N3d2 {[%clk 0:01:33]}  f5 {[%clk 0:01:01]} 33. f4 {[%clk 0:01:31]}  Ndf6 {[%clk 0:00:54]} 34. Nf3 {[%clk 0:01:21]}  Qe7 {[%clk 0:00:51]} 35. Ne5 {[%clk 0:01:20]}  Kh7 {[%clk 0:00:49]} 36. Nh2 {[%clk 0:01:18]}  Nd7 {[%clk 0:00:45]} 37. Nhf3 {[%clk 0:01:13]}  Nxe5 {[%clk 0:00:44]} 38. Bxe5 {[%clk 0:01:06]}  Ba7 {[%clk 0:00:38]} 39. Nd4 {[%clk 0:01:01]}  Kh6 {[%clk 0:00:32]} 40. Bxe4 {[%clk 0:00:56]}  dxe4 {[%clk 0:00:29]} 41. Qc4 {[%clk 0:00:50]}  Kh7 {[%clk 0:00:21]} 42. Kf2 {[%clk 0:00:46]}  Bxd4 {[%clk 0:00:21]} 43. Qxd4 {[%clk 0:00:44]}  Kg8 {[%clk 0:00:16]} 44. Qa7 {[%clk 0:00:43]}  Kf7 {[%clk 0:00:14]} 45. Qb8 {[%clk 0:00:40]}  Qd7 {[%clk 0:00:14]} 46. Qh8 {[%clk 0:00:35]}  Qd2+ {[%clk 0:00:13]} 47. Kg3 {[%clk 0:00:35]}  Qxe3+ {[%clk 0:00:12]} 48. Kh4 {[%clk 0:00:35]}  Qf2+ {[%clk 0:00:08]} 49. Kg5 {[%clk 0:00:35]}  Qg3+ {[%clk 0:00:08]} 50. Kh6 {[%clk 0:00:36]}  Ke6 {[%clk 0:00:01]} 51. Qf6+ {[%clk 0:00:35]}  Kd5 {[%clk 0:00:02]} 52. Qd6# {[%clk 0:00:35]} 1-0

[Event "December 5 Late 2023"]
[Site "https://www.chess.com"]
[Date "2023.12.05"]
[Round "3"]
[White "Lin, Bryan Enming"]
[Black "Wafa, Hamed"]
[Result "0-1"]
[Board "69"]
[TimeControl "180+1"]
[WhiteFideId "30987121"]
[BlackFideId "10628452"]
[WhiteElo "2497"]
[BlackElo "2701"]
[WhiteTeam "USA"]
[BlackTeam "EGY"]
[WhiteClock "0:00:11"]
[BlackClock "0:00:13"]

1. e4 {[%clk 0:03:00]}  e5 {[%clk 0:02:59]} 2. Nf3 {[%clk 0:03:00]}  Nc6 {[%clk 0:03:00]} 3. Nc3 {[%clk 0:03:00]}  Nf6 {[%clk 0:02:59]} 4. a3 {[%clk 0:03:01]}  Bc5 {[%clk 0:02:53]} 5. Nxe5 {[%clk 0:03:00]}  O-O {[%clk 0:02:50]} 6. Nxc6 {[%clk 0:02:55]}  dxc6 {[%clk 0:02:51]} 7. h3 {[%clk 0:02:36]}  Qd4 {[%clk 0:02:25]} 8. Qe2 {[%clk 0:02:35]}  Re8 {[%clk 0:02:10]} 9. d3 {[%clk 0:02:34]}  Nd5 {[%clk 0:01:56]} 10. Nxd5 {[%clk 0:02:29]}  cxd5 {[%clk 0:01:55]} 11. Be3 {[%clk 0:02:29]}  Qxb2 {[%clk 0:01:50]} 12. Rd1 {[%clk 0:02:25]}  Bxe3 {[%clk 0:01:43]} 13. Qxe3 {[%clk 0:02:20]}  dxe4 {[%clk 0:01:40]} 14. Be2 {[%clk 0:02:12]}  Qc3+ {[%clk 0:01:36]} 15. Qd2 {[%clk 0:02:06]}  Qxa3 {[%clk 0:01:23]} 16. dxe4 {[%clk 0:02:04]}  Be6 {[%clk 0:01:19]} 17. O-O {[%clk 0:02:02]}  h6 {[%clk 0:01:16]} 18. f4 {[%clk 0:01:58]}  a5 {[%clk 0:01:10]} 19. Bd3 {[%clk 0:01:52]}  Qc5+ {[%clk 0:01:10]} 20. Kh1 {[%clk 0:01:52]}  f6 {[%clk 0:01:04]} 21. e5 {[%clk 0:01:47]}  f5 {[%clk 0:01:03]} 22. Rb1 {[%clk 0:01:44]}  b6 {[%clk 0:00:59]} 23. g4 {[%clk 0:01:43]}  Rad8 {[%clk 0:00:58]} 24. Kh2 {[%clk 0:01:26]}  a4 {[%clk 0:00:51]} 25. Qg2 {[%clk 0:01:19]}  Rf8 {[%clk 0:00:43]} 26. gxf5 {[%clk 0:00:51]}  Bxf5 {[%clk 0:00:42]} 27. Rg1 {[%clk 0:00:51]}  Qe7 {[%clk 0:00:37]} 28. Qg3 {[%clk 0:00:48]}  Bxd3 {[%clk 0:00:34]} 29. cxd3 {[%clk 0:00:49]}  Rd4 {[%clk 0:00:32]} 30. Rbf1 {[%clk 0:00:47]}  Rd5 {[%clk 0:00:26]} 31. Qg6 {[%clk 0:00:31]}  Kh8 {[%clk 0:00:18]} 32. Rf3 {[%clk 0:00:19]}  a3 {[%clk 0:00:17]} 33. Rfg3 {[%clk 0:00:17]}  a2 {[%clk 0:00:18]} 34. Qh5 {[%clk 0:00:15]}  Qf7 {[%clk 0:00:14]} 35. Qf3 {[%clk 0:00:11]}  Ra5 {[%clk 0:00:13]} 36. Rxg7 {[%clk 0:00:11]}  Qxg7 {[%clk 0:00:13]} 37. Rxg7 {[%clk 0:00:12]}  a1=Q {[%clk 0:00:13]} 38. Rh7+ {[%clk 0:00:12]}  Kxh7 {[%clk 0:00:12]} 39. Qe4+ {[%clk 0:00:12]}  Kh8 {[%clk 0:00:13]} 40. Qg6 {[%clk 0:00:12]}  Ra2+ {[%clk 0:00:13]} 41. Qg2 {[%clk 0:00:11]}  Rxg2+ {[%clk 0:00:13]} 0-1

[Event "December 5 Late 2023"]
[Site "https://www.chess.com"]
[Date "2023.12.05"]
[Round "3"]
[White "Annaberdiyev, Meylis"]
[Black "Minko, Dmitry"]
[Result "1-0"]
[Board "71"]
[TimeControl "180+1"]
[WhiteFideId "14000563"]
[BlackFideId "24188468"]
[WhiteElo "2693"]
[BlackElo "2486"]
[WhiteTeam "TKM"]
[BlackTeam "FID"]
[WhiteClock "0:00:09"]
[BlackClock "0:00:00"]

1. e4 {[%clk 0:03:00]}  e5 {[%clk 0:02:59]} 2. Nf3 {[%clk 0:02:59]}  Nc6 {[%clk 0:02:59]} 3. Bc4 {[%clk 0:02:58]}  Nf6 {[%clk 0:03:00]} 4. Qe2 {[%clk 0:02:56]}  Bc5 {[%clk 0:02:52]} 5. c3 {[%clk 0:02:52]}  O-O {[%clk 0:02:44]} 6. d3 {[%clk 0:02:51]}  h6 {[%clk 0:02:41]} 7. Bb3 {[%clk 0:02:50]}  d5 {[%clk 0:02:32]} 8. Nbd2 {[%clk 0:02:50]}  Re8 {[%clk 0:02:27]} 9. h3 {[%clk 0:02:47]}  a5 {[%clk 0:02:20]} 10. exd5 {[%clk 0:02:20]}  Nxd5 {[%clk 0:02:18]} 11. Ne4 {[%clk 0:02:20]}  Bb6 {[%clk 0:02:00]} 12. Bxh6 {[%clk 0:02:16]}  Nce7 {[%clk 0:01:38]} 13. Bg5 {[%clk 0:02:04]}  f6 {[%clk 0:01:34]} 14. Bxf6 {[%clk 0:01:52]}  gxf6 {[%clk 0:01:34]} 15. Nxf6+ {[%clk 0:01:53]}  Kf7 {[%clk 0:01:13]} 16. Nxe8 {[%clk 0:01:49]}  Qxe8 {[%clk 0:01:13]} 17. Nxe5+ {[%clk 0:01:48]}  Kg7 {[%clk 0:01:13]} 18. d4 {[%clk 0:01:32]}  Bf5 {[%clk 0:00:55]} 19. O-O {[%clk 0:01:25]}  c6 {[%clk 0:00:24]} 20. Rae1 {[%clk 0:01:21]}  Qf8 {[%clk 0:00:21]} 21. Qf3 {[%clk 0:01:17]}  Bc7 {[%clk 0:00:20]} 22. Qg3+ {[%clk 0:01:02]}  Bg6 {[%clk 0:00:20]} 23. f4 {[%clk 0:01:00]}  Qf6 {[%clk 0:00:17]} 24. Bxd5 {[%clk 0:00:57]}  cxd5 {[%clk 0:00:15]} 25. f5 {[%clk 0:00:23]}  Nxf5 {[%clk 0:00:12]} 26. Qxg6+ {[%clk 0:00:24]}  Qxg6 {[%clk 0:00:12]} 27. Nxg6 {[%clk 0:00:24]}  Kxg6 {[%clk 0:00:12]} 28. Re6+ {[%clk 0:00:25]}  Kg5 {[%clk 0:00:12]} 29. g4 {[%clk 0:00:18]}  Nh4 {[%clk 0:00:11]} 30. Rf7 {[%clk 0:00:16]}  Bg3 {[%clk 0:00:07]} 31. Rd7 {[%clk 0:00:12]}  Rf8 {[%clk 0:00:05]} 32. Rxd5+ {[%clk 0:00:12]}  Kf4 {[%clk 0:00:06]} 33. Rd7 {[%clk 0:00:10]}  Nf3+ {[%clk 0:00:05]} 34. Kh1 {[%clk 0:00:10]}  Be1 {[%clk 0:00:03]} 35. Ree7 {[%clk 0:00:09]}  Kg3 {[%clk 0:00:03]} 36. Rf7 {[%clk 0:00:08]}  Re8 {[%clk 0:00:03]} 37. Rde7 {[%clk 0:00:08]}  Rc8 {[%clk 0:00:02]} 38. Rxf3+ {[%clk 0:00:08]}  Kxf3 {[%clk 0:00:02]} 39. Rxe1 {[%clk 0:00:09]}  Kg3 {[%clk 0:00:02]} 40. Re3+ {[%clk 0:00:09]}  Kf2 {[%clk 0:00:03]} 41. Rd3 {[%clk 0:00:10]}  Re8 {[%clk 0:00:03]} 42. Kh2 {[%clk 0:00:10]}  Re2 {[%clk 0:00:03]} 43. Rg3 {[%clk 0:00:08]}  Kf1+ {[%clk 0:00:03]} 44. Kh1 {[%clk 0:00:08]}  Re4 {[%clk 0:00:02]} 45. Rg1+ {[%clk 0:00:08]}  Kf2 {[%clk 0:00:02]} 46. g5 {[%clk 0:00:09]}  Rh4 {[%clk 0:00:01]} 47. Kh2 {[%clk 0:00:09]}  a4 {[%clk 0:00:00]} 48. g6 {[%clk 0:00:09]} 1-0